fUSD/lending_fUSD_20250211
["ID","MTS","AMOUNT","RATE_DAILY","PERIOD"]
[352788284,1739311861131,-500.0,0.00017944,2]
[352788285,1739311861140,-500.0,0.00017944,2]
[352788286,1739311861149,-1126.67,0.00017944,2]
[352788287,1739311861158,-540.56,0.00017944,2]
[352788288,1739311861167,-500.0,0.00017944,2]
[352788289,1739311861177,-500.0,0.00017944,2]
[352788290,1739311861188,-500.0,0.00017944,2]
[352788291,1739311861197,-530.94,0.00017944,2]
[352788292,1739311861207,-500.0,0.00017944,2]
[352788293,1739311861216,-500.0,0.00017944,2]
[352788294,1739311861227,-500.0,0.00017944,2]
[352788295,1739311861236,-500.0,0.00017944,2]
[352788296,1739311861245,-818.18,0.00017944,2]
[352788297,1739311861256,-3121.69,0.00017944,2]
[352788298,1739311861266,-549.07,0.00017944,2]
[352788299,1739311861275,-500.0,0.00017944,2]
[352788300,1739311861284,-500.0,0.00017944,2]
[352788301,1739311861294,-167.62,0.00017944,2]
[352788302,1739311861303,-500.0,0.00017944,2]
[352788303,1739311861312,-500.0,0.00017944,2]
[352788304,1739311861322,-500.0,0.00017944,2]
[352788305,1739311861331,-595.23,0.00017944,2]
[352788306,1739311861340,-500.0,0.00017944,2]
[352788307,1739311861350,-500.0,0.00017944,2]
[352788308,1739311861359,-150.0,0.00017956,2]
[352788309,1739311861369,-150.0,0.00017956,2]
[352788310,1739311861379,-150.0,0.00017956,2]
[352788311,1739311861388,-500.0,0.00017973,2]
[352788312,1739311861398,-358.1243151,0.00017973,2]
[352788313,1739311861407,-1675.4687156,0.00017988,2]
[352788314,1739311861417,-4024.01895553,0.00017997,2]
[352788315,1739311861426,-150.0,0.00017997,2]
[352788316,1739311861436,-16060.71643562,0.00018,2]
[352788317,1739311861449,-689.003,0.00018,2]
[352788318,1739311861466,-500.0,0.00016711,2]
[352788319,1739311861476,-46852.93125225,0.00018,2]
[352788320,1739311861488,-7405.2317826,0.00018,2]
[352788321,1739311861499,-29295.37222221,0.00018,2]
[352788322,1739311861509,-10772.87058895,0.00018,5]
[352788323,1739311861519,-1800.0,0.00018,19]
[352788324,1739311861529,-888.30748538,0.00018024,2]
[352788325,1739311861538,-6194.95917003,0.00018032,2]
[352788326,1739311861548,-150.0,0.00018039,2]
[352788327,1739311861559,-150.0,0.00018059,2]
[352788328,1739311861568,-215.0,0.0001808,2]
[352788329,1739311861578,-150.0,0.0001808,2]
[352788330,1739311861587,-549.116092,0.0001808,2]
[352788331,1739311861596,-500.0,0.0001808,2]
[352788332,1739311861606,-454.809793,0.0001808,2]
[352788333,1739311861615,-500.0,0.0001808,2]
[352788334,1739311861624,-1830.60972599,0.0001808,2]
[352788335,1739311861641,-24.76027401,0.0001808,2]
[352788336,1739311861651,-588.57,0.0001808,2]
[352788337,1739311861661,-6.42992912,0.0001808,2]
[352788339,1739312376638,4584.3636,8.836e-05,2]
[352788341,1739312732038,-655.6787,8.851e-05,2]
[352788342,1739312732064,-869.2566,8.973e-05,2]
[352788343,1739312732090,-500.0,9.736e-05,2]
[352788344,1739312754269,2500.0,8.851e-05,2]
[352788346,1739312773014,1975.0647,8.973e-05,2]
[352788369,1739312875646,-3000.0,8.973e-05,2]
[352788370,1739312880968,-24.9353,8.973e-05,2]
[352788371,1739312881170,-770.83958325,0.000108,2]
[352788372,1739312881191,-189.8819635,0.000129,2]
[352788373,1739312881211,-173.4639169,0.000129,2]
[352788374,1739312881231,-500.0,0.00012973,2]
[352788375,1739312881252,-500.0,0.00012973,2]
[352788376,1739312881272,-788.69886877,0.00012973,2]
[352788377,1739312881294,-500.0,0.00012999,2]
[352788378,1739312881316,-32.18036758,0.00012999,2]
[352788387,1739312926993,-2460.0,8.973e-05,2]
[352788388,1739312950509,-101.5056,8.973e-05,2]
[352788396,1739312959986,-257.22878791,0.000107,2]
[352788397,1739312960007,-759.26,0.00010959,2]
[352788398,1739312960028,-314.08657709,0.000129,2]
[352788399,1739312960051,-326.40399898,0.000129,2]
[352788400,1739312960071,-690.22670659,0.00012999,2]
[352788401,1739312960093,-374.31099569,0.00012999,2]
[352788402,1739312960114,-150.0,0.00012999,2]
[352788403,1739312960374,-208.66047719,0.00012999,2]
[352788404,1739312960396,-550.0,0.00013,2]
[352788405,1739312960418,-6369.82245655,0.00013,2]
[352788406,1739312961229,-10000.0,0.00013,2]
[352788407,1739312962367,-10000.0,0.00013,2]
[352788408,1739312963296,-10000.0,0.00013,2]
[352788409,1739312964195,-10000.0,0.00013,2]
[352788412,1739312980639,-266.49224569,0.000129,2]
[352788413,1739312980660,-168.29658499,0.000129,2]
[352788414,1739312980682,-9565.21116932,0.00013,2]
[352788415,1739312981308,-10000.0,0.00013,2]
[352788416,1739312982481,-10000.0,0.00013,2]
[352788417,1739312983213,-10000.0,0.00013,2]
[352788418,1739312988841,-194.0,0.00013,2]
[352788423,1739313032381,-167.95,0.00010137,2]
[352788424,1739313032390,-86.94,0.00012973,2]
[352788425,1739313032402,-413.06,0.00012973,2]
[352788426,1739313032412,-79.87485907,0.00013,2]
[352788427,1739313032423,-3657.84373031,0.00013,2]
[352788428,1739313032493,-2124.65010571,0.00013,2]
[352788429,1739313032580,-55729.07907663,0.00013,2]
[352788457,1739313038139,-285.48448275,0.00013,2]
[352788458,1739313038299,-19008.6004,0.00013,2]
[352788459,1739313038312,-10453.75048581,0.00013,2]
[352788460,1739313038324,-4849.99996427,0.00013,2]
[352788461,1739313038335,-8277.934682,0.00013,2]
[352788462,1739313038366,-48226.69275146,0.00013,2]
[352788464,1739313038436,-2672.83231158,0.00013,2]
[352788467,1739313038449,-47500.0,0.00013,2]
[352788469,1739313038460,-28594.78859884,0.00013,2]
[352788641,1739313040342,-896.76402568,0.00013,2]
[352788643,1739313040357,-9672.66754144,0.00013,2]
[352788645,1739313040368,-2837.68245474,0.00013,2]
[352788661,1739313040534,-344.035769,0.00013,2]
[352788667,1739313040594,-4600.0,0.00013,2]
[352788669,1739313040606,-5582.57859944,0.00013,2]
[352788672,1739313040617,-903.69050004,0.00013,2]
[352788674,1739313040627,-1084.24,0.00013,2]
[352788694,1739313040905,-4777.33559986,0.00013,2]
[352788695,1739313040916,-10999.87625567,0.00013,2]
[352788696,1739313040927,-486.991505,0.00013,2]
[352788726,1739313043326,-800.069992,0.00013,2]
[352788727,1739313043337,-2808.57393101,0.00013,2]
[352788728,1739313043476,-4971.80055815,0.00013,2]
[352788729,1739313043494,-283.13990002,0.00013,2]
[352788730,1739313043582,-4325.99470946,0.00013,2]
[352788731,1739313043594,-261320.51732884,0.00013,2]
[352788779,1739313046250,-728.3499875,0.00013,2]
[352788781,1739313046262,-3861.66746015,0.00013,2]
[352788783,1739313046273,-13771.266399,0.00013,2]
[352788785,1739313046284,-3306.67750685,0.00013,2]
[352788787,1739313046295,-507.9,0.00013,2]
[352788789,1739313046306,-1083.0,0.00013,2]
[352788792,1739313046318,-47909.45802961,0.00013,2]
[352788795,1739313046343,-27162.01585904,0.00013,2]
[352788797,1739313046354,-53842.92697279,0.00013,2]
[352788799,1739313046365,-1901.1793104,0.00013,2]
[352788807,1739313046439,-740.40033588,0.00013,2]
[352788809,1739313046450,-573.56925366,0.00013,2]
[352788811,1739313046462,-1729.24609705,0.00013,2]
[352788813,1739313046474,-80334.92606725,0.00013,2]
[352788815,1739313046483,-58492.6178414,0.00013,2]
[352788817,1739313046493,-266.49224561,0.00013139,2]
[352788819,1739313046503,-200.0,0.00013373,2]
[352788821,1739313046512,-266.49224561,0.00013377,2]
[352788823,1739313046522,-266.49224561,0.00013616,2]
[352788825,1739313046532,-317.87,0.00013699,2]
[352788827,1739313046541,-2992.76,0.000137,2]
[352788829,1739313046551,-2992.76,0.000137,2]
[352788831,1739313046564,-889.9,0.00013783,2]
[352788833,1739313046573,-266.49224561,0.00013854,2]
[352788835,1739313046583,-23900.0,0.00013863,2]
[352788838,1739313046591,-171.3383029,0.00013868,2]
[352788841,1739313046601,-150.65,0.0001389,2]
[352788843,1739313046610,-178948.39859068,0.000139,2]
[352788846,1739313046619,-326.40399897,0.00013968,2]
[352788849,1739313046629,-150.65,0.0001399,2]
[352788852,1739313046638,-150.65,0.0001399,2]
[352788855,1739313046647,-203.1542423,0.0001399,2]
[352788857,1739313046656,-110078.14866159,0.00014,2]
[352788859,1739313046666,-32339.24698353,0.00014,2]
[352788861,1739313046678,-3969.05151275,0.00014,2]
[352788863,1739313046687,-900.0,0.00014068,2]
[352788865,1739313046698,-500.0,0.00014068,2]
[352788867,1739313046708,-700.0,0.00014068,2]
[352788869,1739313046718,-266.49224561,0.00014093,2]
[352788872,1739313046728,-391.14,0.000142,2]
[352788874,1739313046738,-266.49224561,0.00014331,2]
[352788876,1739313046749,-9867.60645798,0.0001439,2]
[352788877,1739313046759,-200.0,0.0001451,2]
[352788879,1739313046770,-266.49224561,0.0001457,2]
[352788880,1739313046780,-1947.63475,0.000146,2]
[352788883,1739313046789,-1373.36,0.00014765,2]
[352788886,1739313046799,-266.49224561,0.00014808,2]
[352788889,1739313046809,-8912.33,0.00014823,2]
[352788891,1739313046819,-500.0,0.00014891,2]
[352788892,1739313046829,-282.84,0.00014902,2]
[352788895,1739313046839,-804.52,0.00014912,2]
[352788897,1739313046849,-2000.0,0.00014921,2]
[352788898,1739313046859,-2751.0,0.00014956,2]
[352788901,1739313046869,-1500.0,0.00014975,2]
[352788903,1739313046879,-150.65,0.0001499,2]
[352788904,1739313046889,-600.0,0.00015,2]
[352788907,1739313046899,-1960.57200924,0.00015,2]
[352788908,1739313046909,-18147.6642987,0.00015,2]
[352788910,1739313046918,-4915.06295754,0.00015,2]
[352788913,1739313046929,-24657.92600258,0.00015,2]
[352788915,1739313046939,-815.21667168,0.00015,2]
[352788917,1739313046948,-300.0,0.00015,2]
[352788919,1739313046958,-266.49224561,0.00015047,2]
[352788921,1739313046968,-266.49224561,0.00015285,2]
[352788923,1739313046977,-1517.64,0.000153,2]
[352788924,1739313046986,-172.38,0.00015357,2]
[352788926,1739313046996,-15978.6422375,0.000154,2]
[352788928,1739313047005,-485.92175104,0.000154,2]
[352788930,1739313047015,-900.0,0.00015438,2]
[352788932,1739313047024,-700.0,0.00015438,2]
[352788935,1739313047037,-266.49224561,0.00015524,2]
[352788937,1739313047046,-2795.64,0.00015724,2]
[352788939,1739313047055,-2795.64,0.00015728,2]
[352788941,1739313047065,-2795.64,0.00015732,2]
[352788943,1739313047074,-2795.64,0.00015736,2]
[352788945,1739313047084,-2795.64,0.00015741,2]
[352788946,1739313047093,-2795.64,0.00015745,2]
[352788949,1739313047103,-2795.64,0.00015749,2]
[352788951,1739313047113,-4085.46,0.0001575,2]
[352788953,1739313047122,-2795.64,0.00015753,2]
[352788955,1739313047132,-2795.64,0.00015757,2]
[352788956,1739313047141,-2795.64,0.00015761,2]
[352788958,1739313047150,-266.49224561,0.00015762,2]
[352788960,1739313047160,-2795.64,0.00015765,2]
[352788962,1739313047169,-150.65,0.00015768,2]
[352788965,1739313047179,-2795.64,0.00015769,2]
[352788966,1739313047188,-2795.64,0.00015774,2]
[352788968,1739313047198,-2795.64,0.00015778,2]
[352788971,1739313047207,-2795.64,0.00015782,2]
[352788973,1739313047216,-2795.64,0.00015786,2]
[352788974,1739313047225,-2795.64,0.0001579,2]
[352788976,1739313047234,-2795.64,0.00015794,2]
[352788978,1739313047243,-2795.64,0.00015798,2]
[352788980,1739313047252,-2795.64,0.00015803,2]
[352788982,1739313047262,-266.49224561,0.00016001,2]
[352788984,1739313047271,-703.04,0.00016031,2]
[352788986,1739313047280,-1404.01088994,0.00016116,2]
[352788989,1739313047298,-7183.83918807,0.00016116,2]
[352788991,1739313047310,-289.95388619,0.00016116,2]
[352788994,1739313047322,-393.5,0.00016116,2]
[352788996,1739313047333,-728.6860358,0.00016116,2]
[352788998,1739313047342,-300.0,0.00016328,2]
[352789000,1739313047351,-200.0,0.0001634,2]
[352789002,1739313047361,-1947.63475,0.000164,2]
[352789003,1739313047370,-500.0,0.00016438,2]
[352789004,1739313047379,-500.0,0.00016438,2]
[352789005,1739313047389,-500.0,0.00016438,2]
[352789006,1739313047399,-500.0,0.00016438,2]
[352789008,1739313047408,-500.0,0.00016438,2]
[352789010,1739313047417,-553.05,0.00016438,2]
[352789012,1739313047428,-500.0,0.00016438,2]
[352789014,1739313047437,-500.0,0.00016438,2]
[352789015,1739313047447,-500.0,0.00016438,2]
[352789017,1739313047457,-500.0,0.00016438,2]
[352789019,1739313047467,-500.0,0.00016438,2]
[352789021,1739313047476,-610.74,0.00016438,2]
[352789023,1739313047486,-500.0,0.00016438,2]
[352789024,1739313047495,-500.0,0.00016438,2]
[352789025,1739313047506,-728.28,0.00016438,2]
[352789026,1739313047515,-500.0,0.00016438,2]
[352789027,1739313047525,-724.91,0.00016438,2]
[352789028,1739313047535,-500.0,0.00016438,2]
[352789029,1739313047544,-500.0,0.00016438,2]
[352789030,1739313047553,-500.0,0.00016438,2]
[352789031,1739313047569,-500.0,0.00016438,2]
[352789032,1739313047578,-500.0,0.00016438,2]
[352789033,1739313047588,-500.0,0.00016438,2]
[352789034,1739313047597,-532.87,0.00016438,2]
[352789035,1739313047607,-500.0,0.00016438,2]
[352789036,1739313047617,-500.0,0.00016438,2]
[352789037,1739313047626,-500.0,0.00016438,2]
[352789038,1739313047635,-500.0,0.00016438,2]
[352789039,1739313047645,-500.0,0.00016438,2]
[352789040,1739313047654,-500.0,0.00016438,2]
[352789041,1739313047664,-500.0,0.00016438,2]
[352789042,1739313047673,-390.272236,0.00016438,2]
[352789043,1739313047682,-500.0,0.00016438,2]
[352789044,1739313047692,-500.0,0.00016438,2]
[352789045,1739313047702,-153.291906,0.00016438,2]
[352789046,1739313047714,-500.0,0.00016438,2]
[352789047,1739313047723,-500.0,0.00016438,2]
[352789048,1739313047733,-500.0,0.00016438,2]
[352789049,1739313047742,-500.0,0.00016438,2]
[352789050,1739313047752,-155.916172,0.00016438,2]
[352789051,1739313047762,-500.0,0.00016438,2]
[352789052,1739313047771,-276.49791597,0.00016438,2]
[352789053,1739313047782,-500.0,0.00016438,2]
[352789054,1739313047793,-500.0,0.00016438,2]
[352789055,1739313047804,-520.83,0.00016438,2]
[352789056,1739313047814,-500.0,0.00016438,2]
[352789057,1739313047824,-500.0,0.00016438,2]
[352789058,1739313047834,-500.0,0.00016438,2]
[352789059,1739313047843,-500.0,0.00016438,2]
[352789060,1739313047852,-500.0,0.00016438,2]
[352789061,1739313047862,-500.0,0.00016438,2]
[352789062,1739313047871,-500.0,0.00016438,2]
[352789063,1739313047882,-500.0,0.00016438,2]
[352789064,1739313047892,-500.0,0.00016438,2]
[352789065,1739313047902,-500.0,0.00016438,2]
[352789066,1739313047914,-167.50473188,0.00016438,2]
[352789067,1739313047935,-500.0,0.00016438,2]
[352789068,1739313047946,-500.0,0.00016438,2]
[352789069,1739313047956,-500.0,0.00016438,2]
[352789070,1739313047966,-500.0,0.00016438,2]
[352789071,1739313047976,-500.0,0.00016438,2]
[352789072,1739313047986,-150.0,0.00016438,2]
[352789073,1739313047996,-25589.96425958,0.00016473,2]
[352789074,1739313048006,-1000.0,0.00016489,2]
[352789075,1739313048016,-1269.82473395,0.0001649,2]
[352789076,1739313048027,-2977.9587,0.00016548,2]
[352789077,1739313048037,-150.65,0.00016554,2]
[352789078,1739313048047,-150.65,0.00016563,2]
[352789079,1739313048057,-150.65,0.00016564,2]
[352789080,1739313048068,-500.0,0.00016573,2]
[352789081,1739313048078,-500.0,0.00016573,2]
[352789082,1739313048088,-500.0,0.00016573,2]
[352789083,1739313048099,-500.0,0.00016573,2]
[352789084,1739313048110,-500.0,0.00016573,2]
[352789085,1739313048121,-500.0,0.00016573,2]
[352789086,1739313048132,-500.0,0.00016573,2]
[352789087,1739313048143,-500.0,0.00016573,2]
[352789088,1739313048153,-500.0,0.00016573,2]
[352789089,1739313048163,-500.0,0.00016573,2]
[352789090,1739313048174,-500.0,0.00016573,2]
[352789091,1739313048185,-500.0,0.00016573,2]
[352789092,1739313048196,-500.0,0.00016573,2]
[352789093,1739313048207,-500.0,0.00016573,2]
[352789094,1739313048218,-500.0,0.00016573,2]
[352789095,1739313048229,-500.0,0.00016573,2]
[352789096,1739313048241,-500.0,0.00016573,2]
[352789097,1739313048252,-500.0,0.00016573,2]
[352789098,1739313048263,-500.0,0.00016573,2]
[352789099,1739313048273,-500.0,0.00016573,2]
[352789100,1739313048283,-500.0,0.00016573,2]
[352789101,1739313048294,-500.0,0.00016573,2]
[352789102,1739313048304,-500.0,0.00016573,2]
[352789103,1739313048314,-500.0,0.00016573,2]
[352789104,1739313048325,-500.0,0.00016573,2]
[352789105,1739313048335,-500.0,0.00016573,2]
[352789106,1739313048346,-500.0,0.00016573,2]
[352789107,1739313048357,-563.0017442,0.00016573,2]
[352789108,1739313048367,-500.0,0.00016573,2]
[352789109,1739313048377,-500.0,0.00016573,2]
[352789110,1739313048387,-500.0,0.00016573,2]
[352789111,1739313048398,-500.0,0.00016573,2]
[352789112,1739313048408,-500.0,0.00016573,2]
[352789113,1739313048418,-500.0,0.00016573,2]
[352789114,1739313048428,-500.0,0.00016573,2]
[352789115,1739313048439,-500.0,0.00016573,2]
[352789116,1739313048449,-500.0,0.00016573,2]
[352789117,1739313048458,-500.0,0.00016573,2]
[352789118,1739313048468,-500.0,0.00016573,2]
[352789119,1739313048479,-500.0,0.00016573,2]
[352789120,1739313048489,-500.0,0.00016573,2]
[352789121,1739313048499,-500.0,0.00016573,2]
[352789122,1739313048508,-500.0,0.00016573,2]
[352789123,1739313048518,-500.0,0.00016573,2]
[352789124,1739313048528,-500.0,0.00016573,2]
[352789125,1739313048538,-500.0,0.00016573,2]
[352789126,1739313048548,-500.0,0.00016573,2]
[352789127,1739313048559,-500.0,0.00016573,2]
[352789128,1739313048570,-500.0,0.00016573,2]
[352789129,1739313048580,-500.0,0.00016573,2]
[352789130,1739313048590,-500.0,0.00016573,2]
[352789131,1739313048600,-500.0,0.00016573,2]
[352789132,1739313048610,-500.0,0.00016573,2]
[352789133,1739313048620,-500.0,0.00016573,2]
[352789134,1739313048629,-500.0,0.00016573,2]
[352789135,1739313048638,-500.0,0.00016573,2]
[352789136,1739313048649,-395.21893044,0.00016573,2]
[352789137,1739313048658,-500.0,0.00016573,2]
[352789138,1739313048668,-500.0,0.00016573,2]
[352789139,1739313048678,-500.0,0.00016573,2]
[352789140,1739313048687,-500.0,0.00016573,2]
[352789141,1739313048697,-500.0,0.00016573,2]
[352789142,1739313048706,-500.0,0.00016573,2]
[352789143,1739313048715,-500.0,0.00016573,2]
[352789144,1739313048725,-500.0,0.00016573,2]
[352789145,1739313048734,-500.0,0.00016573,2]
[352789146,1739313048744,-500.0,0.00016573,2]
[352789147,1739313048754,-500.0,0.00016573,2]
[352789148,1739313048763,-500.0,0.00016573,2]
[352789149,1739313048773,-500.0,0.00016573,2]
[352789150,1739313048783,-901.76,0.00016573,2]
[352789151,1739313048793,-500.0,0.00016573,2]
[352789152,1739313048802,-500.0,0.00016573,2]
[352789153,1739313048811,-500.0,0.00016573,2]
[352789154,1739313048821,-583.30521897,0.00016573,2]
[352789155,1739313048831,-500.0,0.00016573,2]
[352789156,1739313048841,-500.0,0.00016573,2]
[352789157,1739313048851,-500.0,0.00016573,2]
[352789158,1739313048860,-500.0,0.00016573,2]
[352789159,1739313048870,-501.35867069,0.00016573,2]
[352789160,1739313048880,-500.0,0.00016573,2]
[352789161,1739313048890,-500.0,0.00016573,2]
[352789162,1739313048899,-500.0,0.00016573,2]
[352789163,1739313048915,-500.0,0.00016573,2]
[352789164,1739313048927,-500.0,0.00016573,2]
[352789165,1739313048937,-501.41113033,0.00016573,2]
[352789166,1739313048946,-501.69403305,0.00016573,2]
[352789167,1739313048958,-500.0,0.00016573,2]
[352789168,1739313048968,-500.0,0.00016573,2]
[352789169,1739313048979,-500.0,0.00016573,2]
[352789170,1739313048989,-500.0,0.00016573,2]
[352789171,1739313049000,-500.0,0.00016573,2]
[352789172,1739313049011,-500.0,0.00016573,2]
[352789173,1739313049021,-500.0,0.00016573,2]
[352789174,1739313049031,-501.74042655,0.00016573,2]
[352789175,1739313049041,-500.0,0.00016573,2]
[352789176,1739313049052,-500.0,0.00016573,2]
[352789177,1739313049061,-500.0,0.00016573,2]
[352789178,1739313049071,-500.0,0.00016573,2]
[352789179,1739313049081,-505.13831181,0.00016573,2]
[352789180,1739313049091,-500.0,0.00016573,2]
[352789181,1739313049101,-500.0,0.00016573,2]
[352789182,1739313049111,-500.0,0.00016573,2]
[352789183,1739313049120,-500.0,0.00016573,2]
[352789184,1739313049131,-600.80209666,0.00016573,2]
[352789185,1739313049141,-500.0,0.00016573,2]
[352789186,1739313049151,-500.0,0.00016573,2]
[352789187,1739313049162,-500.0,0.00016573,2]
[352789188,1739313049173,-500.0,0.00016573,2]
[352789189,1739313049183,-500.0,0.00016573,2]
[352789190,1739313049193,-500.0,0.00016573,2]
[352789191,1739313049204,-500.0,0.00016573,2]
[352789192,1739313049215,-500.0,0.00016573,2]
[352789193,1739313049225,-500.0,0.00016573,2]
[352789194,1739313049235,-500.0,0.00016573,2]
[352789195,1739313049245,-500.0,0.00016573,2]
[352789196,1739313049255,-500.0,0.00016573,2]
[352789197,1739313049266,-500.57011229,0.00016573,2]
[352789198,1739313049276,-500.0,0.00016573,2]
[352789199,1739313049287,-500.0,0.00016573,2]
[352789200,1739313049297,-500.0,0.00016573,2]
[352789201,1739313049308,-828.63,0.00016573,2]
[352789202,1739313049319,-500.0,0.00016573,2]
[352789203,1739313049329,-500.0,0.00016573,2]
[352789204,1739313049340,-500.0,0.00016573,2]
[352789205,1739313049351,-500.0,0.00016573,2]
[352789206,1739313049362,-500.0,0.00016573,2]
[352789207,1739313049373,-503.05550398,0.00016573,2]
[352789208,1739313049384,-500.0,0.00016573,2]
[352789209,1739313049394,-500.0,0.00016573,2]
[352789210,1739313049405,-500.0,0.00016573,2]
[352789211,1739313049415,-500.0,0.00016573,2]
[352789212,1739313049425,-500.0,0.00016573,2]
[352789213,1739313049436,-500.0,0.00016573,2]
[352789214,1739313049447,-500.0,0.00016573,2]
[352789215,1739313049457,-500.0,0.00016573,2]
[352789216,1739313049467,-500.0,0.00016573,2]
[352789217,1739313049477,-500.0,0.00016573,2]
[352789218,1739313049487,-500.0,0.00016573,2]
[352789219,1739313049496,-500.0,0.00016573,2]
[352789220,1739313049507,-500.0,0.00016573,2]
[352789221,1739313049517,-500.0,0.00016573,2]
[352789222,1739313049527,-500.0,0.00016573,2]
[352789223,1739313049537,-500.0,0.00016573,2]
[352789224,1739313049547,-574.72,0.00016573,2]
[352789225,1739313049558,-500.0,0.00016573,2]
[352789226,1739313049570,-500.0,0.00016573,2]
[352789227,1739313049579,-1742.55,0.00016573,2]
[352789228,1739313049589,-500.0,0.00016573,2]
[352789229,1739313049599,-500.0,0.00016573,2]
[352789230,1739313049608,-500.0,0.00016573,2]
[352789231,1739313049618,-500.0,0.00016573,2]
[352789232,1739313049775,-500.0,0.00016573,2]
[352789233,1739313049785,-500.0,0.00016573,2]
[352789234,1739313049795,-500.0,0.00016573,2]
[352789235,1739313049804,-500.0,0.00016573,2]
[352789236,1739313049814,-500.0,0.00016573,2]
[352789237,1739313049824,-500.0,0.00016573,2]
[352789238,1739313049834,-500.0,0.00016573,2]
[352789239,1739313049843,-500.0,0.00016573,2]
[352789240,1739313049853,-500.0,0.00016573,2]
[352789241,1739313049867,-500.0,0.00016573,2]
[352789242,1739313049876,-500.0,0.00016573,2]
[352789243,1739313049886,-500.0,0.00016573,2]
[352789244,1739313049896,-500.0,0.00016573,2]
[352789245,1739313049907,-500.0,0.00016573,2]
[352789246,1739313049918,-416.66,0.00016573,2]
[352789247,1739313049928,-500.0,0.00016573,2]
[352789248,1739313049939,-500.0,0.00016573,2]
[352789249,1739313049948,-500.0,0.00016573,2]
[352789250,1739313049958,-500.0,0.00016573,2]
[352789251,1739313049969,-500.0,0.00016573,2]
[352789252,1739313049979,-500.0,0.00016573,2]
[352789253,1739313049991,-500.0,0.00016573,2]
[352789254,1739313050000,-500.0,0.00016573,2]
[352789255,1739313050010,-500.0,0.00016573,2]
[352789256,1739313050019,-500.0,0.00016573,2]
[352789257,1739313050028,-500.0,0.00016573,2]
[352789258,1739313050038,-500.0,0.00016573,2]
[352789259,1739313050047,-500.0,0.00016573,2]
[352789260,1739313050056,-515.35,0.00016573,2]
[352789261,1739313050065,-500.0,0.00016573,2]
[352789262,1739313050075,-124.17007335,0.00016573,2]
[352789263,1739313050266,-375.82992665,0.00016573,2]
[352789264,1739313050276,-260.98941331,0.00016573,2]
[352789265,1739313050287,-239.01058669,0.00016573,2]
[352789266,1739313050296,-383.909854,0.00016573,2]
[352789267,1739313050305,-500.0,0.00016573,2]
[352789268,1739313050314,-703.52,0.00016573,2]
[352789269,1739313050323,-2035.0,0.00016573,2]
[352789270,1739313050333,-500.0,0.00016573,2]
[352789271,1739313050342,-500.0,0.00016573,2]
[352789272,1739313050351,-500.0,0.00016573,2]
[352789273,1739313050360,-500.0,0.00016573,2]
[352789274,1739313050369,-500.0,0.00016573,2]
[352789275,1739313050378,-273.15955931,0.00016573,2]
[352789276,1739313050390,-226.84044069,0.00016573,2]
[352789277,1739313050399,-500.0,0.00016573,2]
[352789278,1739313050408,-508.61,0.00016573,2]
[352789279,1739313050417,-129.29955731,0.00016573,2]
[352789280,1739313050436,-370.70044269,0.00016573,2]